fUSD/lending_fUSD_20260406
["ID","MTS","AMOUNT","RATE_DAILY","PERIOD"]
[419888546,1775467872051,-231.592996,0.00015335,2]
[419888547,1775467872060,-231.592996,0.00015335,2]
[419888548,1775467872070,-283.986928,0.00015335,2]
[419888549,1775467872080,-973.389471,0.00015335,2]
[419888550,1775467872089,-973.389471,0.00015335,2]
[419888551,1775467872099,-1849.298231,0.00015335,2]
[419888552,1775467872109,-224.259029,0.00015335,2]
[419888553,1775467872118,-1849.298231,0.00015335,2]
[419888554,1775467872128,-641.371877,0.00015335,2]
[419888555,1775467872138,-224.259029,0.00015335,2]
[419888556,1775467872148,-641.371877,0.00015335,2]
[419888557,1775467872158,-224.259029,0.00015335,2]
[419888558,1775467872168,-151.0,0.00015335,2]
[419888559,1775467872177,-641.371877,0.00015335,2]
[419888560,1775467872187,-151.0,0.00015335,2]
[419888561,1775467872197,-224.259029,0.00015335,2]
[419888562,1775467872208,-641.371877,0.00015335,2]
[419888563,1775467872217,-224.259029,0.00015335,2]
[419888564,1775467872227,-641.371877,0.00015335,2]
[419888565,1775467872236,-224.259029,0.00015335,2]
[419888566,1775467872246,-641.371877,0.00015335,2]
[419888567,1775467872256,-310.299956,0.00015335,2]
[419888568,1775467872267,-151.0,0.00015335,2]
[419888569,1775467872277,-151.0,0.00015335,2]
[419888570,1775467872287,-310.299956,0.00015335,2]
[419888571,1775467872297,-151.0,0.00015335,2]
[419888572,1775467872306,-224.259029,0.00015335,2]
[419888573,1775467872316,-151.0,0.00015335,2]
[419888574,1775467872326,-641.371877,0.00015335,2]
[419888575,1775467872336,-310.299956,0.00015335,2]
[419888576,1775467872346,-224.259029,0.00015335,2]
[419888577,1775467872356,-641.371877,0.00015335,2]
[419888578,1775467872366,-224.259029,0.00015335,2]
[419888579,1775467872376,-151.0,0.00015335,2]
[419888580,1775467872386,-641.371877,0.00015335,2]
[419888581,1775467872396,-729.37873,0.00015335,2]
[419888582,1775467872406,-729.37873,0.00015335,2]
[419888583,1775467872417,-310.299956,0.00015335,2]
[419888584,1775467872426,-729.37873,0.00015335,2]
[419888585,1775467872436,-151.0,0.00015335,2]
[419888586,1775467872447,-310.299956,0.00015335,2]
[419888587,1775467872456,-151.0,0.00015335,2]
[419888588,1775467872466,-224.259029,0.00015335,2]
[419888589,1775467872476,-641.371877,0.00015335,2]
[419888590,1775467872486,-151.0,0.00015335,2]
[419888591,1775467872496,-310.299956,0.00015335,2]
[419888592,1775467872506,-151.0,0.00015335,2]
[419888593,1775467872516,-224.259029,0.00015335,2]
[419888594,1775467872526,-641.371877,0.00015335,2]
[419888595,1775467872536,-1849.298231,0.00015335,2]
[419888596,1775467872546,-1849.298231,0.00015335,2]
[419888597,1775467872556,-283.986928,0.00015335,2]
[419888598,1775467872566,-283.986928,0.00015335,2]
[419888599,1775467872576,-224.259034,0.00015335,2]
[419888600,1775467872585,-151.0,0.00015335,2]
[419888601,1775467872594,-641.371884,0.00015335,2]
[419888602,1775467872605,-1849.298231,0.00015335,2]
[419888603,1775467872614,-729.37873,0.00015335,2]
[419888604,1775467872625,-156.432067,0.00015335,2]
[419888605,1775467872635,-1849.298231,0.00015335,2]
[419888606,1775467872644,-310.299956,0.00015335,2]
[419888607,1775467872655,-156.432067,0.00015335,2]
[419888608,1775467872665,-9062.314184,0.00015335,2]
[419888609,1775467872676,-729.37873,0.00015335,2]
[419888610,1775467872686,-1558.801213,0.00015335,2]
[419888611,1775467872696,-310.299956,0.00015335,2]
[419888612,1775467872706,-9062.314184,0.00015335,2]
[419888613,1775467872715,-729.37873,0.00015335,2]
[419888614,1775467872725,-1558.801213,0.00015335,2]
[419888615,1775467872735,-1171.091271,0.00015335,2]
[419888616,1775467872745,-9062.314184,0.00015335,2]
[419888617,1775467872755,-1558.801213,0.00015335,2]
[419888618,1775467872765,-1171.091271,0.00015335,2]
[419888619,1775467872775,-729.37873,0.00015335,2]
[419888620,1775467872785,-1171.091271,0.00015335,2]
[419888621,1775467872795,-156.432067,0.00015335,2]
[419888622,1775467872805,-9062.314184,0.00015335,2]
[419888623,1775467872815,-729.37873,0.00015335,2]
[419888624,1775467872824,-156.432067,0.00015335,2]
[419888625,1775467872834,-1558.801213,0.00015335,2]
[419888626,1775467872844,-310.299956,0.00015335,2]
[419888627,1775467872854,-598.603024,0.00015335,2]
[419888628,1775467872863,-9062.314184,0.00015335,2]
[419888629,1775467872873,-729.37873,0.00015335,2]
[419888630,1775467872883,-283.986928,0.00015335,2]
[419888631,1775467872893,-1558.801213,0.00015335,2]
[419888632,1775467872903,-598.603024,0.00015335,2]
[419888633,1775467872913,-9062.314184,0.00015335,2]
[419888634,1775467872923,-310.299956,0.00015335,2]
[419888635,1775467872933,-1171.091271,0.00015335,2]
[419888636,1775467872943,-1558.801213,0.00015335,2]
[419888637,1775467872953,-283.986928,0.00015335,2]
[419888638,1775467872963,-598.603024,0.00015335,2]
[419888639,1775467872973,-310.299957,0.00015335,2]
[419888640,1775467872983,-1171.091271,0.00015335,2]
[419888641,1775467872993,-729.37873,0.00015335,2]
[419888642,1775467873003,-3730.308272,0.00015335,2]
[419888643,1775467873014,-1171.091271,0.00015335,2]
[419888644,1775467873025,-156.432067,0.00015335,2]
[419888645,1775467873035,-9062.314184,0.00015335,2]
[419888646,1775467873046,-3730.308272,0.00015335,2]
[419888647,1775467873057,-729.37873,0.00015335,2]
[419888648,1775467873067,-156.432067,0.00015335,2]
[419888649,1775467873078,-1558.801213,0.00015335,2]
[419888650,1775467873089,-598.603024,0.00015335,2]
[419888651,1775467873099,-9062.314184,0.00015335,2]
[419888652,1775467873110,-729.37874,0.00015335,2]
[419888653,1775467873121,-1558.801213,0.00015335,2]
[419888654,1775467873132,-598.603024,0.00015335,2]
[419888655,1775467873142,-2391.66883,0.00015335,2]
[419888656,1775467873153,-9062.314184,0.00015335,2]
[419888657,1775467873165,-1171.091271,0.00015335,2]
[419888658,1775467873176,-1558.801213,0.00015335,2]
[419888659,1775467873187,-151.0,0.00015335,2]
[419888660,1775467873198,-598.603024,0.00015335,2]
[419888661,1775467873208,-2391.66883,0.00015335,2]
[419888662,1775467873219,-1171.091271,0.00015335,2]
[419888663,1775467873230,-151.0,0.00015335,2]
[419888664,1775467873241,-2391.66883,0.00015335,2]
[419888665,1775467873252,-156.432067,0.00015335,2]
[419888666,1775467873263,-1171.091271,0.00015335,2]
[419888667,1775467873274,-3730.308272,0.00015335,2]
[419888668,1775467873285,-151.0,0.00015335,2]
[419888669,1775467873295,-9062.314184,0.00015335,2]
[419888670,1775467873306,-156.432067,0.00015335,2]
[419888671,1775467873317,-3730.308272,0.00015335,2]
[419888672,1775467873327,-598.603024,0.00015335,2]
[419888673,1775467873338,-995.998497,0.00015335,2]
[419888674,1775467873350,-9062.314184,0.00015335,2]
[419888675,1775467873360,-754.24561559,0.00015335,2]
[419888676,1775467873385,-804.55559741,0.00015335,2]
[419888677,1775467873395,-598.603024,0.00015335,2]
[419888678,1775467873406,-995.998497,0.00015335,2]
[419888679,1775467873417,-2391.66883,0.00015335,2]
[419888680,1775467873428,-9062.314192,0.00015335,2]
[419888681,1775467873439,-1558.801213,0.00015335,2]
[419888682,1775467873449,-1171.091271,0.00015335,2]
[419888683,1775467873459,-598.603024,0.00015335,2]
[419888684,1775467873470,-995.998497,0.00015335,2]
[419888685,1775467873481,-2391.66883,0.00015335,2]
[419888686,1775467873492,-151.0,0.00015335,2]
[419888687,1775467873503,-1558.801221,0.00015335,2]
[419888688,1775467873513,-1171.091271,0.00015335,2]
[419888689,1775467873523,-2391.66883,0.00015335,2]
[419888690,1775467873534,-1171.091275,0.00015335,2]
[419888691,1775467873545,-3730.308272,0.00015335,2]
[419888692,1775467873556,-3730.308272,0.00015335,2]
[419888693,1775467873568,-598.603024,0.00015335,2]
[419888694,1775467873579,-995.998497,0.00015335,2]
[419888695,1775467873589,-598.603024,0.00015335,2]
[419888696,1775467873600,-2391.66883,0.00015335,2]
[419888697,1775467873611,-995.998497,0.00015335,2]
[419888698,1775467873622,-598.603025,0.00015335,2]
[419888699,1775467873633,-2391.66883,0.00015335,2]
[419888700,1775467873643,-411.62381521,0.00015335,2]
[419888701,1775467873679,-584.37468179,0.00015335,2]
[419888702,1775467873690,-2391.66883,0.00015335,2]
[419888703,1775467873701,-3730.308272,0.00015335,2]
[419888704,1775467873711,-186.094504,0.00015335,2]
[419888705,1775467873721,-3730.308272,0.00015335,2]
[419888706,1775467873732,-151.0,0.00015335,2]
[419888707,1775467873742,-995.998497,0.00015335,2]
[419888708,1775467873753,-151.0,0.00015335,2]
[419888709,1775467873762,-995.998497,0.00015335,2]
[419888710,1775467873773,-2391.66883,0.00015335,2]
[419888711,1775467873783,-151.0,0.00015335,2]
[419888712,1775467873794,-995.998497,0.00015335,2]
[419888713,1775467874348,-2391.66883,0.00015335,2]
[419888714,1775467874359,-151.0,0.00015335,2]
[419888715,1775467874369,-2391.668832,0.00015335,2]
[419888716,1775467874379,-151.0,0.00015335,2]
[419888717,1775467874390,-520.296237,0.00015335,2]
[419888718,1775467874401,-520.296237,0.00015335,2]
[419888719,1775467874411,-151.0,0.00015335,2]
[419888720,1775467874421,-151.0,0.00015335,2]
[419888721,1775467874431,-995.998497,0.00015335,2]
[419888722,1775467874442,-520.296237,0.00015335,2]
[419888723,1775467874452,-151.0,0.00015335,2]
[419888724,1775467874462,-995.998497,0.00015335,2]
[419888725,1775467874474,-151.0,0.00015335,2]
[419888726,1775467874484,-782.85111348,0.00015335,2]
[419888727,1775467874523,-213.14738752,0.00015335,2]
[419888728,1775467874533,-151.0,0.00015335,2]
[419888729,1775467874544,-151.0,0.00015335,2]
[419888730,1775467874554,-520.296237,0.00015335,2]
[419888731,1775467874564,-151.0,0.00015335,2]
[419888732,1775467874575,-167.071898,0.00015335,2]
[419888733,1775467874585,-520.296237,0.00015335,2]
[419888734,1775467874595,-167.071898,0.00015335,2]
[419888735,1775467874605,-132.4043196,0.00015335,2]
[419888736,1775467874618,-387.8919174,0.00015335,2]
[419888737,1775467874628,-151.0,0.00015335,2]
[419888738,1775467874639,-167.071898,0.00015335,2]
[419888739,1775467874649,-151.0,0.00015335,2]
[419888740,1775467874660,-151.0,0.00015335,2]
[419888741,1775467874670,-151.0,0.00015335,2]
[419888742,1775467874680,-151.0,0.00015335,2]
[419888743,1775467874690,-151.0,0.00015335,2]
[419888744,1775467874700,-151.0,0.00015335,2]
[419888745,1775467874710,-151.0,0.00015335,2]
[419888746,1775467874720,-151.0,0.00015335,2]
[419888747,1775467874730,-49.4880682,0.00015335,2]
[419888816,1775467993739,5369.29964357,8.75e-05,2]
[419888817,1775468001308,10000.0,8.516e-05,2]
[419888837,1775468010866,10000.0,8.516e-05,2]
[419888843,1775468024157,10000.0,8.516e-05,2]
[419888844,1775468038280,10000.0,8.516e-05,2]
[419888856,1775468138975,-226.0,0.0001,2]
[419888857,1775468139001,-159.35044793,0.0001,2]
[419888858,1775468139044,-29.92169905,0.0001,2]
[419888859,1775468139070,-294.0,0.0001,2]
[419888861,1775468143505,150.0,0.0001,2]
[419888894,1775469031655,-189.27214699,0.000102,2]
[419888896,1775469031665,-297.0,0.000102,2]
[419888898,1775469031675,-47.79442114,0.000102,2]
[419888904,1775469031713,-202.20557886,0.000102,2]
[419888906,1775469031723,-378.78020416,0.00010647,2]
[419888908,1775469031732,-300.0,0.00011015,2]
[419888910,1775469031741,-300.0,0.00011015,2]
[419888912,1775469031751,-1200.0,0.00011015,2]
[419888914,1775469031761,-2057.02099021,0.00011015,2]
[419888916,1775469031772,-1623.11679656,0.00011015,2]
[419888917,1775469031784,-335.31456548,0.00011015,2]
[419888918,1775469031795,-1065.2223718,0.00011015,2]
[419888919,1775469031807,-2171.79258427,0.00011015,2]
[419888924,1775469032246,-3994.67917432,0.00011015,2]
[419888925,1775469032266,-390.37271931,0.00011015,2]
[419888926,1775469032298,-12242.93179783,0.00011015,2]
[419888927,1775469032310,-5599.60610807,0.00011015,2]
[419888928,1775469032326,-2183.46267359,0.00011015,2]
[419888929,1775469032342,-336.37939,0.00011015,2]
[419888930,1775469032353,-1230.22,0.00011015,2]
[419888931,1775469032365,-1130.56427407,0.00011015,2]
[419888932,1775469032375,-150.0,0.00011016,2]
[419888933,1775469032384,-300.0,0.00011132,2]
[419888934,1775469032393,-150.0,0.00011219,2]
[419888935,1775469032403,-250.0,0.0001122,2]
[419888936,1775469032412,-600.0,0.0001122,2]
[419888937,1775469032421,-600.0,0.0001122,2]
[419888938,1775469032430,-600.0,0.0001122,2]
[419888939,1775469032440,-600.0,0.0001122,2]
[419888940,1775469032449,-600.0,0.0001122,2]
[419888941,1775469032459,-195.0,0.0001122,2]
[419888942,1775469032468,-195.0,0.0001122,2]
[419888943,1775469032478,-195.0,0.0001122,2]
[419888944,1775469032487,-195.0,0.0001122,2]
[419888945,1775469032496,-195.0,0.0001122,2]
[419888946,1775469032506,-179.14916869,0.0001122,2]
[419888947,1775469032515,-398.5181422,0.0001122,2]
[419888948,1775469032525,-300.0,0.0001122,2]
[419888949,1775469032534,-151.0,0.0001203,2]
[419888950,1775469032543,-150.0,0.000121,2]
[419888951,1775469032553,-76.76841504,0.00012104,2]
[419888952,1775469032566,-343.23158496,0.00012104,2]
[419888953,1775469032575,-156.76841504,0.00012116,2]
[419888960,1775469037932,-1165.07047732,0.00012116,2]
[419888961,1775469037944,-358.16110764,0.00012116,2]
[419888962,1775469037954,-329.0,0.00012116,2]
[419888963,1775469037964,-420.0,0.00012231,2]
[419888964,1775469037973,-1528.9263264,0.00012247,2]
[419888965,1775469037984,-995.8536736,0.00012247,2]
[419888966,1775469037994,-150.99,0.00012247,2]
[419888967,1775469038004,-255.0,0.00012274,2]
[419888968,1775469038013,-298.99,0.00012357,2]
[419888969,1775469038022,-399.2799986,0.00012423,2]
[419888970,1775469038034,-100.7200014,0.00012423,2]
[419888971,1775469038044,-174.5664069,0.00012423,2]
[419888972,1775469038073,-74.9335931,0.00012423,2]
[419888973,1775469038083,-2000.0,0.00012423,2]
[419888974,1775469038093,-22.9964069,0.00012423,2]
[419888975,1775469038105,-177.0035931,0.00012423,2]
[419888976,1775469038115,-150.0,0.00012423,2]
[419888977,1775469038125,-74.6126219,0.00012423,2]
[419888978,1775469038137,-225.3773781,0.00012423,2]
[419888979,1775469038147,-2800.43,0.00012423,2]
[419888980,1775469038156,-1233.2,0.00012522,2]
[419888981,1775469038166,-374.5628,0.00012597,2]
[419888982,1775469038176,-158.0,0.000126,2]
[419888983,1775469038186,-158.0,0.000126,2]
[419888984,1775469038196,-250.0,0.00013,2]
[419888985,1775469038206,-68647.31926648,0.00013,2]
[419888987,1775469038217,-452.72668511,0.00013,2]
[419888988,1775469038234,-282.5432996,0.00013,2]
[419888989,1775469038246,-8539.3814926,0.00013,2]
[419888990,1775469038258,-347.24338275,0.00013,2]
[419888991,1775469038286,-306.09168766,0.00013,2]
[419889166,1775469040105,-1004187.70133462,0.00013,2]
[419889167,1775469040161,-32835.0941416,0.00013,2]
[419889168,1775469040174,-34575.07031925,0.00013,2]
[419889169,1775469040692,-943.78799,0.00013,2]
[419889170,1775469040852,-279.29267842,0.00013,2]
[419889171,1775469040865,-461.38777926,0.00013,2]
[419889199,1775469045725,-92943.14801624,0.00013,2]
[419889200,1775469045777,-515.642885,0.00013,2]
[419889201,1775469045790,-902.4970347,0.00013,2]
[419889202,1775469045944,-2178.4481999,0.00013,2]
[419889203,1775469045995,-5079.31617661,0.00013,2]
[419889204,1775469046007,-110774.99785703,0.00013,2]
[419889205,1775469046019,-525.568331,0.00013,2]
[419889206,1775469046049,-1035.08389315,0.00013,2]
[419889229,1775470212498,2679.9382547,0.0001,2]
[419889240,1775470232271,-18.48017508,0.0001,2]
[419889242,1775470232282,-519.70662137,0.000107,2]
[419889244,1775470232294,-251.40160654,0.000107,2]
[419889247,1775470232307,-299.86767116,0.000107,2]
[419889250,1775470232319,-2776.58441543,0.000107,2]
[419889255,1775470232356,-2498.70757123,0.000107,2]
[419889257,1775470232371,-524.2394,0.000107,2]
[419889260,1775470232383,-2012.78354579,0.000107,2]
[419889262,1775470232399,-410.55372032,0.000107,2]
[419889265,1775470232411,-18158.61043862,0.000107,2]
[419889273,1775470232826,-46683.57353203,0.000107,2]
[419889277,1775470238140,-1008.2491592,0.000107,2]
[419889278,1775470238248,-824.0600001,0.000107,2]
[419889309,1775470240474,-356.4230969,0.000107,2]
[419889310,1775470240535,-842.5280389,0.000107,2]
[419889311,1775470240545,-306.0,0.00010709,2]
[419889312,1775470240555,-175.83301656,0.00010709,2]
[419889313,1775470240565,-250.0,0.00011273,2]
[419889314,1775470240574,-250.0,0.00011518,2]
[419889315,1775470240584,-219.28053588,0.00011658,2]
[419889316,1775470240593,-500.0,0.00011766,2]
[419889317,1775470240603,-600.0,0.0001178,2]
[419889318,1775470240612,-300.0,0.00012399,2]
[419889319,1775470240621,-1200.0,0.00012399,2]
[419889320,1775470240631,-300.0,0.00012399,2]
[419889321,1775470240641,-300.0,0.00012399,2]
[419889322,1775470240650,-363.6461603,0.000124,2]
[419889323,1775470240660,-250.0,0.000124,2]
[419889324,1775470240670,-300.0,0.00012421,2]
[419889325,1775470240679,-150.0,0.00012422,2]
[419889326,1775470240688,-1500.0,0.00012423,2]
[419889327,1775470240697,-2742.89,0.00012423,2]
[419889328,1775470240706,-1792.28,0.00012423,2]
[419889329,1775470240716,-500.0,0.00012423,2]
[419889330,1775470240726,-12137.87,0.00012423,2]
[419889331,1775470240735,-3921.28,0.00012423,2]
[419889332,1775470240744,-347.65580151,0.00012473,2]
[419889333,1775470240753,-150.0,0.0001249,2]
[419889334,1775470240763,-150.0,0.0001249,2]
[419889335,1775470240772,-150.99,0.0001249,2]
[419889336,1775470240781,-990.0,0.00012522,2]
[419889337,1775470240790,-150.0,0.00012585,2]
[419889338,1775470240799,-251.03397785,0.00012659,2]
[419889339,1775470240809,-165.5,0.00012796,2]
[419889340,1775470240818,-160.1,0.000128,2]
[419889341,1775470240828,-234.92,0.00012842,2]
[419889342,1775470240837,-13322.5491153,0.00012879,2]
[419889343,1775470240847,-219.28053588,0.00012893,2]
[419889344,1775470240856,-10574.35251432,0.00012953,2]
[419889345,1775470240866,-500.0,0.00012973,2]
[419889346,1775470240875,-503.42744374,0.00012973,2]
[419889347,1775470240884,-500.25334159,0.00012973,2]
[419889348,1775470240894,-500.0,0.00012973,2]
[419889349,1775470240903,-500.0,0.00012973,2]
[419889350,1775470240913,-500.0,0.00012973,2]
[419889351,1775470240922,-200.0,0.00012985,2]
[419889352,1775470240931,-151.0,0.00012985,2]
[419889353,1775470240940,-151.0,0.00012985,2]
[419889354,1775470240949,-151.0,0.00012985,2]
[419889355,1775470240959,-151.0,0.00012985,2]
[419889356,1775470240968,-151.0,0.00012985,2]
[419889357,1775470240977,-151.0,0.00012985,2]
[419889358,1775470240986,-151.0,0.00012985,2]
[419889359,1775470240996,-151.0,0.00012985,2]
[419889360,1775470241006,-151.0,0.00012985,2]
[419889361,1775470241015,-151.0,0.00012985,2]
[419889362,1775470241024,-151.0,0.00012985,2]
[419889363,1775470241033,-151.0,0.00012985,2]
[419889364,1775470241042,-629.47078978,0.00012985,2]
[419889365,1775470241052,-194.18662976,0.0001299,2]
[419889366,1775470241062,-1000.0,0.00012992,2]
[419889367,1775470241072,-500.0,0.00012993,2]
[419889368,1775470241081,-1371.0519723,0.00012993,2]
[419889369,1775470241092,-10333.6212799,0.00012993,2]
[419889370,1775470241101,-754.2886201,0.00012993,2]
[419889371,1775470241111,-11021.4204264,0.00012993,2]
[419889372,1775470241121,-3078.4391791,0.00012993,2]
[419889373,1775470241131,-41592.7508639,0.00012999,2]
[419889374,1775470241140,-500.0,0.00012999,2]
[419889375,1775470241151,-332.88524062,0.00012999,2]
[419889376,1775470241160,-360.48562963,0.00012999,2]
[419889377,1775470241178,-307.5318218,0.00012999,2]
[419889378,1775470241195,-500.0,0.00012999,2]
[419889379,1775470241205,-220.37344884,0.00012999,2]
[419889380,1775470241215,-500.0,0.00012999,2]
[419889381,1775470241225,-2202.9424215,0.00012999,2]
[419889382,1775470241235,-2202.9424215,0.00012999,2]
[419889383,1775470241244,-366.53157537,0.00012999,2]
[419889384,1775470241254,-500.0,0.00012999,2]
[419889385,1775470241264,-2202.9424215,0.00012999,2]
[419889386,1775470241274,-2202.9424215,0.00012999,2]
[419889387,1775470241284,-500.0,0.00012999,2]
[419889388,1775470241295,-2202.9424215,0.00012999,2]
[419889389,1775470241304,-638.78158086,0.00012999,2]
[419889390,1775470241315,-2202.9424215,0.00012999,2]
[419889391,1775470241325,-2202.9424215,0.00012999,2]
[419889392,1775470241335,-2202.9424215,0.00012999,2]
[419889393,1775470241344,-2202.9424215,0.00012999,2]
[419889394,1775470241354,-2202.9424215,0.00012999,2]
[419889395,1775470241364,-2202.9424215,0.00012999,2]
[419889396,1775470241374,-2202.9424215,0.00012999,2]
[419889397,1775470241384,-2202.9424215,0.00012999,2]
[419889398,1775470241394,-2202.9424215,0.00012999,2]
[419889399,1775470241403,-2202.9424215,0.00012999,2]
[419889400,1775470241413,-2202.9424215,0.00012999,2]
[419889401,1775470241422,-2202.9424215,0.00012999,2]
[419889402,1775470241432,-2202.9424215,0.00012999,2]
[419889403,1775470241442,-2202.9424215,0.00012999,2]
[419889404,1775470241452,-2202.9424215,0.00012999,2]
[419889405,1775470241462,-2202.9424215,0.00012999,2]
[419889406,1775470241472,-2202.9424215,0.00012999,2]
[419889407,1775470241482,-2202.9424215,0.00012999,2]
[419889408,1775470241491,-2202.9424215,0.00012999,2]
[419889409,1775470241501,-2202.9424215,0.00012999,2]
[419889410,1775470241510,-2202.9424215,0.00012999,2]
[419889411,1775470241520,-2202.9424215,0.00012999,2]
[419889412,1775470241529,-2202.9424215,0.00012999,2]
[419889413,1775470241539,-2202.9424215,0.00012999,2]
[419889414,1775470241549,-2202.9424215,0.00012999,2]
[419889415,1775470241558,-2202.9424215,0.00012999,2]
[419889416,1775470241572,-2202.9424215,0.00012999,2]
[419889417,1775470241581,-2202.9424215,0.00012999,2]
[419889418,1775470241591,-2202.9424215,0.00012999,2]
[419889419,1775470241601,-2202.9424215,0.00012999,2]
[419889420,1775470241611,-2202.9424215,0.00012999,2]
[419889421,1775470241620,-2202.9424215,0.00012999,2]
[419889422,1775470241630,-2202.9424215,0.00012999,2]
[419889423,1775470241639,-2202.9424215,0.00012999,2]
[419889424,1775470241649,-2202.9424215,0.00012999,2]
[419889425,1775470241658,-2202.9424215,0.00012999,2]
[419889426,1775470241668,-2202.9424215,0.00012999,2]
[419889427,1775470241677,-2202.9424215,0.00012999,2]
[419889428,1775470241694,-2202.9424215,0.00012999,2]
[419889429,1775470241704,-2202.9424215,0.00012999,2]
[419889430,1775470241713,-2202.9424215,0.00012999,2]
[419889431,1775470241723,-2202.9424215,0.00012999,2]
[419889432,1775470241733,-2202.9424215,0.00012999,2]
[419889433,1775470241743,-2202.9424215,0.00012999,2]
[419889434,1775470241752,-2202.9424215,0.00012999,2]
[419889435,1775470241762,-2202.9424215,0.00012999,2]
[419889436,1775470241773,-2202.9424215,0.00012999,2]
[419889437,1775470241783,-2202.9424215,0.00012999,2]
[419889438,1775470241793,-2202.9424215,0.00012999,2]
[419889439,1775470241803,-2202.9424215,0.00012999,2]
[419889440,1775470241813,-2202.9424215,0.00012999,2]
[419889441,1775470241823,-2202.9424215,0.00012999,2]
[419889442,1775470241833,-2202.9424215,0.00012999,2]
[419889443,1775470241843,-2202.9424215,0.00012999,2]
[419889444,1775470241853,-150.0,0.00013,2]
[419889445,1775470241863,-151.0,0.00013,2]
[419889446,1775470241873,-151.0,0.00013,2]
[419889447,1775470241883,-1165.98217065,0.00013,7]
[419889448,1775470241893,-736610.62675528,0.00013,2]
[419889470,1775470243973,-349.97409577,0.00013,2]
[419889471,1775470243987,-1001.07725936,0.00013,2]
[419889472,1775470244803,-0.0093361,0.00012999,2]
[419889473,1775470244816,-2202.9330854,0.00012999,2]
[419889474,1775470244826,-623.94579577,0.00012999,2]
[419889475,1775470244927,-1578.99662573,0.00012999,2]
[419889476,1775470244937,-2202.9424215,0.00012999,2]
[419889477,1775470244947,-16665.45149019,0.00013,2]
[419889480,1775470248568,-965.85700089,0.00013,2]
[419889481,1775470248581,-565.6000001,0.00013,2]
[419889482,1775470248592,-506.5681281,0.00013,2]
[419889483,1775470248604,-4868.7298457,0.00013,2]
[419889484,1775470248620,-1261.267356,0.00013,2]
[419889485,1775470248632,-11483.38141545,0.00013,2]
[419889489,1775470439857,1200.0,9.999e-05,2]
[419889490,1775470442388,300.0,9.999e-05,2]
[419889491,1775470442921,294.0,9.999e-05,2]
[419889492,1775470473159,574.73688269,9.9e-05,2]
[419889493,1775470473183,2368.73688269,9.9e-05,2]
[419889494,1775470473207,2368.73688269,9.9e-05,2]
[419889495,1775470473230,2368.73688269,9.9e-05,2]
[419889496,1775470473253,2368.73688269,9.9e-05,2]
[419889497,1775470473276,2368.73688269,9.9e-05,2]
[419889498,1775470473299,2368.73688269,9.9e-05,2]
[419889499,1775470473322,2368.73688269,9.9e-05,2]
[419889500,1775470473345,2368.73688269,9.9e-05,2]
[419889501,1775470473368,2368.73688269,9.9e-05,2]
[419889502,1775470502097,69989.23216,9.5e-05,3]
[419889503,1775470502125,54943.66213925,9.5e-05,3]
[419889504,1775470653721,223.33,6.211e-05,2]
[419889505,1775470653783,223.33,6.538e-05,2]
[419889506,1775470653921,223.33,6.865e-05,2]
[419889507,1775470653998,223.33,7.192e-05,2]
[419889508,1775470654132,223.33,7.519e-05,2]
[419889509,1775470654207,223.33,7.846e-05,2]
[419889510,1775470654267,223.33,8.173e-05,2]
[419889511,1775470654348,223.33,8.5e-05,2]
[419889514,1775470685655,157.0,8.5e-05,3]
[419889515,1775470747977,157.0,8.5e-05,3]
[419889517,1775470806751,157.0,8.5e-05,3]
[419889518,1775470867628,158.0,8.5e-05,3]
[419889520,1775470912183,5707.443206,8.178e-05,2]
[419889521,1775470928556,158.0,8.5e-05,3]
[419889523,1775471032073,1147.0,9e-05,6]
[419889525,1775471148998,-150.0,8.598e-05,2]
[419889526,1775471149031,-300.0,8.598e-05,2]